bitfinex/quotes_ETHUSD_20241216
["timestamp","ask_amount","ask_price","bid_price","bid_amount"]
[1734338882322,0.50612442,3957.6,3956.9,0.5003]
[1734338882561,2.52645,3958.2,3956.9,0.5003]
[1734338882734,2.5261,3958.7,3957.2,2.527]
[1734338882735,2.52628,3958.4,3957.2,2.527]
[1734338883031,2.52628,3958.4,3957.4,0.5003]
[1734338883231,2.52628,3958.4,3957.5,0.02526478]
[1734338883828,0.50248615,3958.0,3957.6,0.5003]
[1734338886155,2.15336918,3958.3,3957.6,0.5003]
[1734338886461,2.52657,3958.0,3957.6,0.5003]
[1734338887993,0.49689502,3958.1,3957.6,0.5003]
[1734338888277,0.76192144,3958.1,3957.6,0.5003]
[1734338888473,2.52664,3957.9,3957.6,0.5003]
[1734338889578,2.52664,3957.9,3957.3,0.5003]
[1734338889579,2.52691,3957.4,3957.3,0.5003]
[1734338889758,2.52704,3957.2,3956.2,0.5003]
[1734338889956,2.52704,3957.2,3956.4,0.5003]
[1734338890325,2.52691,3957.4,3956.4,0.5003]
[1734338890526,2.52691,3957.4,3956.5,0.86444248]
[1734338890724,2.52691,3957.4,3956.5,0.36414248]
[1734338890968,2.52691,3957.4,3956.6,0.5003]
[1734338891134,2.15336918,3957.5,3956.6,0.9908066]
[1734338891472,2.52705,3957.2,3956.6,0.9908066]
[1734338893026,2.15336918,3957.5,3956.6,0.5003]
[1734338893226,2.5273,3956.8,3956.6,0.5003]
[1734338896336,2.15336918,3956.7,3955.1,0.5003]
[1734338896525,2.52797,3955.8,3955.4,0.5003]
[1734338896725,2.52799,3955.7,3955.4,0.5003]
[1734338897166,2.52767,3956.2,3955.4,0.5003]
[1734338897167,2.52785,3956.0,3955.4,0.5003]
[1734338897461,2.15336918,3956.3,3955.4,0.5003]
[1734338897626,2.52767,3956.2,3955.4,0.5003]
[1734338897822,2.52786,3956.0,3955.4,0.5003]
[1734338898149,2.52786,3956.0,3955.4,0.86444248]
[1734338898346,2.15336918,3956.3,3955.4,0.86444248]
[1734338898553,2.52795,3955.8,3955.4,0.86444248]
[1734338898750,4.8963461,3956.3,3955.4,0.86444248]
[1734338898751,2.15336918,3955.9,3955.4,0.86444248]
[1734338898950,2.15336918,3955.5,3955.0,0.5003]
[1734338899150,0.7847,3955.9,3955.0,0.5003]
[1734338899151,2.15336918,3955.1,3955.0,0.5003]
[1734338899735,2.52832,3955.2,3955.0,0.86444248]
[1734338900773,2.15336918,3955.5,3955.0,0.86444248]
[1734338901005,2.52819,3955.4,3955.0,0.86444248]
[1734338901169,2.15336918,3955.9,3955.1,0.38942499]
[1734338901359,2.52793,3955.8,3955.1,0.36414248]
[1734338901697,2.15336918,3955.9,3955.1,0.36414248]
[1734338901860,2.15336918,3955.9,3955.2,0.5003]
[1734338902065,2.15336918,3955.9,3955.3,0.36414248]
[1734338902495,2.52794,3955.8,3955.3,0.36414248]
[1734338902713,2.15336918,3955.9,3955.3,0.36414248]
[1734338903574,2.52794,3955.8,3955.3,0.36414248]
[1734338903778,2.52801,3955.7,3955.2,0.5003]
[1734338904217,4.68124918,3955.9,3955.2,0.5003]
[1734338904811,2.15336918,3956.3,3955.4,0.5003]
[1734338904985,2.15336918,3956.3,3955.5,0.36414248]
[1734338905192,4.68098918,3956.3,3955.6,0.5003]
[1734338905681,2.52767,3956.2,3955.6,0.5003]
[1734338905885,2.15336918,3956.3,3955.6,0.5003]
[1734338906114,2.52776,3956.1,3955.6,0.5003]
[1734338906314,2.15336918,3956.3,3955.6,0.5003]
[1734338906622,2.52781,3956.0,3955.6,0.5003]
[1734338907519,2.15336918,3956.3,3955.6,0.5003]
[1734338907746,2.52793,3955.9,3955.6,0.5003]
[1734338908028,4.68129918,3955.9,3955.6,0.5003]
[1734338908803,2.52793,3955.8,3955.6,0.5003]
[1734338910222,2.15336918,3955.9,3955.2,0.5003]
[1734338910423,2.52806,3955.6,3955.2,0.5003]
[1734338911889,0.7727,3956.0,3955.0,0.26332431]
[1734338911890,2.15336918,3955.5,3955.0,0.26332431]
[1734338912090,2.52833,3955.2,3955.0,0.26332431]
[1734338914540,4.68174918,3955.1,3955.0,0.26332431]
[1734338914692,2.15336918,3955.1,3955.0,0.26332431]
[1734338915346,4.68174918,3955.1,3955.0,0.26332431]
[1734338918621,0.8329,3955.3,3955.1,0.31825082]
[1734338918823,2.15336918,3955.2,3955.1,0.31825082]
[1734338920257,4.68167918,3955.2,3955.1,0.31825082]
[1734338920872,2.15336918,3955.2,3955.1,0.31825082]
[1734338922237,4.68167918,3955.2,3955.1,0.31825082]
[1734338922639,2.52831,3955.2,3955.1,0.31825082]
[1734338922834,2.15336918,3955.3,3955.1,0.31825082]
[1734338923761,2.52821,3955.4,3955.2,0.5003]
[1734338923970,2.15336918,3955.5,3955.2,0.5003]
[1734338924266,2.52831,3955.2,3955.1,0.31825082]
[1734338925066,3.33691,3955.2,3955.1,0.31825082]
[1734338925235,3.80507792,3955.2,3955.1,0.31825082]
[1734338927166,5.9584471,3955.2,3955.1,0.31825082]
[1734338927753,8.9584471,3955.2,3955.1,0.31825082]
[1734338928741,6.80507792,3955.2,3955.1,0.31825082]
[1734338929278,8.9584471,3955.2,3955.1,0.31825082]
[1734338930471,6.80507792,3955.2,3955.1,0.31825082]
[1734338931747,8.9584471,3955.2,3955.1,0.31825082]
[1734338932867,6.80507792,3955.2,3955.1,0.31825082]
[1734338933265,7.31420098,3955.2,3955.1,0.31825082]
[1734338933676,9.46757016,3955.2,3955.1,0.31825082]
[1734338935003,6.84603306,3955.2,3955.1,0.31825082]
[1734338935166,3.84603306,3955.2,3955.1,0.31825082]
[1734338935857,0.50912306,3955.2,3955.1,0.31825082]
[1734338936057,2.52819,3955.4,3955.1,0.81855082]
[1734338937064,2.52825,3955.3,3955.1,0.81855082]
[1734338937294,2.15336918,3955.5,3955.1,0.81855082]
[1734338937587,2.52831,3955.2,3955.1,0.31825082]
[1734338939993,0.7572,3955.3,3955.0,0.26332431]
[1734338940217,4.68174918,3955.1,3955.0,0.26332431]
[1734338940557,2.15336918,3955.1,3955.0,0.26332431]
[1734338941496,4.68174918,3955.1,3955.0,0.26332431]
[1734338943805,2.15336918,3955.1,3955.0,0.26332431]
[1734338944115,2.15336918,3955.1,3955.0,0.76362431]
[1734338945608,2.15336918,3955.1,3955.0,0.26332431]
[1734338945609,4.68174918,3955.1,3955.0,0.26332431]
[1734338946718,2.52838,3955.1,3955.0,0.26332431]
[1734338946913,3.65121796,3955.1,3955.0,0.26332431]
[1734338949387,2.52914,3953.9,3953.8,0.1315775]
[1734338949592,4.68250918,3953.9,3953.8,0.1315775]
[1734338950011,4.68250918,3953.9,3953.6,0.5003]
[1734338950904,4.68250918,3953.9,3953.0,0.5003]
[1734338950905,2.15336918,3953.9,3953.0,0.5003]
[1734338951117,2.15336918,3953.9,3953.0,0.66122976]
[1734338951118,2.15336918,3953.3,3953.0,0.66122976]
[1734338951643,2.52978,3952.9,3952.3,0.7]
[1734338951793,2.15336918,3952.9,3952.3,0.7]
[1734338951989,2.15336918,3952.9,3952.4,0.5003]
[1734338952219,2.15336918,3952.9,3952.4,0.63349218]
[1734338952605,2.15336918,3952.5,3952.4,0.5003]
[1734338952808,2.15336918,3952.5,3952.3,0.7]
[1734338954720,0.8117,3953.3,3952.3,0.7]
[1734338955009,2.15336918,3953.2,3952.5,0.5003]
[1734338955212,2.15336918,3953.2,3952.6,0.43583814]
[1734338955399,2.15336918,3953.2,3952.5,0.84128533]
[1734338957310,2.15336918,3953.2,3952.5,0.5003]
[1734338958354,0.50070046,3953.9,3952.3,0.7]
[1734338958355,2.15336918,3952.8,3952.3,0.7]
[1734338958505,2.15336918,3952.4,3952.3,0.7]
[1734338962778,2.15336918,3952.9,3952.4,0.5003]
[1734338962909,2.15336918,3952.9,3952.4,0.65442853]
[1734338963932,0.7734,3953.5,3952.4,0.65442853]
[1734338964128,2.15336918,3952.8,3952.4,0.65442853]
[1734338965073,2.15336918,3952.8,3952.3,0.7]
[1734338965260,2.15336918,3952.4,3952.3,0.7]
[1734338965918,2.15336918,3952.8,3952.3,0.7]
[1734338968762,2.15336918,3952.8,3952.5,2.53004]
[1734338968965,2.15336918,3952.8,3952.5,2.93717253]
[1734338969874,2.15336918,3952.8,3952.5,0.40713253]
[1734338972083,2.15336918,3952.8,3952.4,0.5003]
[1734338972248,2.15336918,3952.8,3952.3,0.7]
[1734338972444,2.15336918,3952.4,3952.3,0.7]
[1734338983077,2.15336918,3952.8,3952.3,0.7]
[1734338984691,1.06133108,3954.2,3953.3,0.5003]
[1734338984899,0.01036402,3954.2,3953.3,3.02981]
[1734338985201,0.01036402,3954.2,3953.5,2.52938]
[1734338985706,2.15336918,3954.1,3953.4,0.34098533]
[1734338985925,2.15336918,3954.1,3953.4,2.87042533]
[1734338986579,2.15336918,3954.1,3953.4,0.34098533]
[1734338986822,2.15336918,3954.1,3953.5,2.52934]
[1734338987520,2.15336918,3954.1,3953.3,0.86103474]
[1734338987689,2.15336918,3954.1,3953.3,1.20009121]
[1734338987884,0.01036402,3954.2,3953.3,3.72959121]
[1734338989372,0.01036402,3954.2,3953.3,0.5003]
[1734338990212,0.7559,3954.1,3953.3,0.5003]
[1734338991403,3.28494,3954.1,3953.0,3.5003]
[1734338992115,3.28494,3954.1,3953.0,0.5003]
[1734338993584,0.7559,3954.1,3953.0,3.39075474]
[1734338993810,0.7559,3954.1,3953.1,0.37317401]
[1734338995232,0.7559,3954.1,3953.1,3.28884015]
[1734338995735,0.7559,3954.1,3953.1,3.26354875]
[1734338996591,0.7559,3954.1,3953.1,3.60453408]
[1734338997388,0.01036402,3954.2,3953.1,3.60453408]
[1734338997389,0.01036402,3954.2,3953.3,0.5003]
[1734338997594,0.01036402,3954.2,3953.8,0.5003]
[1734339000457,0.7888,3954.1,3953.0,3.02996]
[1734339000760,2.15336918,3954.0,3953.0,0.5003]
[1734339000904,0.01036402,3954.2,3953.3,0.5003]
[1734339001105,0.01036402,3954.2,3953.6,2.52928]
[1734339001559,0.01036402,3954.2,3953.7,3.02953]
[1734339001756,0.01036402,3954.2,3953.7,3.05481771]
[1734339002029,0.01036402,3954.2,3953.9,2.52909]
[1734339002222,0.01036402,3954.2,3954.0,0.40092709]
[1734339003018,0.01036402,3954.2,3954.0,0.3756398]
[1734339003808,0.01036402,3954.2,3954.1,0.02528742]
[1734339004844,0.01036402,3954.2,3954.0,0.3756398]
[1734339005670,0.00123432,3954.2,3953.8,0.59738433]
[1734339007381,0.00123432,3954.2,3953.9,0.02528742]
[1734339007574,0.00123432,3954.2,3954.0,3.23080007]
[1734339007938,0.00123432,3954.2,3954.0,3.25608507]
[1734339008134,0.00123432,3954.2,3954.0,3.23080007]
[1734339008458,0.00123432,3954.2,3954.1,0.34871991]
[1734339009181,0.00123432,3954.2,3953.8,0.256399]
[1734339013013,5.48800918,3953.9,3953.8,0.256399]
[1734339016911,5.48800918,3953.9,3953.8,9e-06]
[1734339016912,11.19137836,3953.9,3953.8,9e-06]
[1734339017108,11.19137836,3953.9,3952.3,0.83165071]
[1734339017109,2.52959,3953.2,3952.3,0.83165071]
[1734339017342,2.15336918,3952.6,3952.3,0.83165071]
[1734339019295,4.68335918,3952.6,3952.3,0.83165071]
[1734339019502,0.8058,3952.5,3952.3,0.83165071]
[1734339021133,2.5301,3952.4,3952.3,0.83165071]
[1734339021357,2.5301,3952.4,3952.3,0.7]
[1734339021502,3.33201792,3952.4,3952.3,0.7]
[1734339021702,4.16201792,3952.4,3952.3,0.7]
[1734339025154,7.16201792,3952.4,3952.3,0.7]
[1734339025317,7.71201792,3952.4,3952.3,0.7]
[1734339027138,2.53068,3951.5,3951.4,0.13166891]
[1734339027452,5.49134918,3951.5,3951.4,0.13166891]
[1734339028649,5.49134918,3951.5,3951.0,0.1630624]
[1734339028650,2.53078,3951.4,3951.0,0.1630624]
[1734339028950,2.15336918,3951.1,3951.0,0.1630624]
[1734339031247,2.15336918,3951.5,3951.0,0.6633624]
[1734339033049,2.15336918,3951.5,3951.0,3.1943524]
[1734339033249,2.15336918,3951.5,3951.0,0.6633624]
[1734339033427,2.15336918,3951.5,3951.1,2.53092]
[1734339034029,2.15336918,3951.5,3951.0,0.6633624]
[1734339034941,2.15336918,3951.5,3951.0,3.1943524]
[1734339035384,2.15336918,3951.5,3951.0,3.51378764]
[1734339037154,0.7759,3952.1,3951.0,0.98279764]
[1734339037347,2.15336918,3952.0,3951.4,2.53072]
[1734339037545,0.7759,3952.1,3951.5,2.53065]
[1734339037731,2.15336918,3952.0,3951.6,0.5003]
[1734339038340,2.15336918,3952.0,3951.7,2.53051]
[1734339038544,2.15336918,3952.0,3951.7,2.833591]
[1734339039279,2.15336918,3952.0,3951.7,0.303081]
[1734339039577,0.8168,3952.4,3951.6,0.5003]
[1734339039578,2.15336918,3952.4,3951.6,0.5003]
[1734339040278,2.15336918,3952.0,3951.6,3.03091]
[1734339040678,2.15336918,3952.0,3951.8,0.5003]
[1734339041845,2.15336918,3952.0,3951.3,0.5003]
[1734339042391,2.15336918,3952.0,3951.3,3.05640325]
[1734339042607,2.15336918,3952.0,3951.3,0.52560325]
[1734339042948,2.15336918,3952.0,3951.8,2.53048]
[1734339043149,2.15336918,3952.0,3951.9,0.5003]
[1734339044212,2.15336918,3952.0,3951.9,3.03072]
[1734339044922,2.15336918,3952.4,3951.9,3.03072]
[1734339045446,2.15336918,3952.4,3951.9,0.5003]
[1734339045723,2.15336918,3952.4,3952.1,2.53028]
[1734339046011,2.15336918,3952.4,3951.9,0.5003]
[1734339046364,2.15336918,3952.4,3951.9,3.03072]
[1734339046989,2.15336918,3952.4,3951.2,0.29800691]
[1734339046990,0.7763,3952.3,3951.5,2.53068]
[1734339047609,0.7763,3952.3,3951.5,3.133778]
[1734339048318,0.7763,3952.3,3951.6,2.53059]
[1734339049167,0.7763,3952.3,3951.5,0.603098]
[1734339049370,0.7763,3952.3,3951.8,2.53048]
[1734339052204,2.15336918,3952.9,3952.1,2.53023]
[1734339052537,2.15336918,3952.9,3951.9,0.52560239]
[1734339052538,2.15336918,3952.9,3952.2,2.86111284]
[1734339052741,2.15336918,3952.9,3951.9,0.5003]
[1734339052946,2.15336918,3952.9,3952.7,2.52987]
[1734339053444,0.8119,3953.4,3952.6,0.5003]
[1734339053445,2.15336918,3953.3,3952.6,0.5003]
[1734339053651,0.7791,3953.7,3953.1,2.52965]
[1734339053809,2.15336918,3953.6,3953.1,2.52965]
[1734339054929,2.15336918,3953.2,3952.5,3.0]
[1734339055133,2.15336918,3952.7,3952.2,0.5003]
[1734339055436,2.15336918,3952.7,3951.5,1.66099856]
[1734339055437,0.8,3952.5,3952.0,3.0]
[1734339055793,0.8,3952.5,3951.5,3.133718]
[1734339055794,2.15336918,3952.3,3951.6,0.5003]
[1734339055931,2.15336918,3952.3,3951.6,2.53056]
[1734339058722,2.15336918,3952.3,3951.3,0.5003]
[1734339058920,2.15336918,3952.3,3951.0,0.6633624]
[1734339058921,2.15336918,3951.5,3951.0,0.6633624]
[1734339059528,2.15336918,3951.1,3951.0,0.1630624]
[1734339059661,0.8109,3951.4,3951.0,0.1630624]
[1734339061103,2.91926918,3951.9,3951.2,2.53081]
[1734339061328,2.91926918,3951.9,3951.1,0.5003]
[1734339061464,2.91926918,3951.9,3951.0,0.74745099]
[1734339061671,2.15336918,3951.5,3951.0,0.46487446]
[1734339061899,2.15336918,3951.5,3951.0,0.1630624]
[1734339062897,2.15336918,3951.5,3951.0,0.1530624]
[1734339064660,2.91926918,3951.9,3951.1,2.53094]
[1734339065531,2.91926918,3951.9,3951.1,0.5003]
[1734339065754,0.7802,3952.2,3951.4,2.53068]
[1734339066014,0.7802,3952.2,3951.5,2.55596302]
[1734339066216,2.15336918,3952.3,3951.6,2.53059]
[1734339066468,2.15336918,3952.3,3951.8,2.53048]
[1734339066613,2.15336918,3952.3,3951.7,0.5003]
[1734339066979,0.7837,3952.5,3951.7,0.5003]
[1734339067114,0.7785,3952.8,3951.7,0.82741379]
[1734339067312,0.7785,3952.8,3951.4,4.58685084]
[1734339067313,2.93186918,3953.1,3952.4,2.53004]
[1734339067531,2.93186918,3953.1,3952.5,2.53002]
[1734339067846,2.15336918,3953.1,3952.6,0.5003]
[1734339068513,2.15336918,3953.1,3952.3,3.03046]
[1734339068716,2.15336918,3953.1,3952.3,2.53016]
[1734339068914,2.15336918,3953.1,3952.1,0.5003]
[1734339069120,2.15336918,3953.1,3952.2,3.15582006]
[1734339069362,2.15336918,3953.1,3952.3,2.53014]
[1734339069568,2.15336918,3953.1,3952.7,2.52989]
[1734339069748,0.7635,3953.4,3952.7,2.52989]
[1734339069976,0.7635,3953.4,3952.8,2.52983]
[1734339070708,2.15336918,3953.6,3953.0,2.52972]
[1734339071565,2.15336918,3953.6,3952.8,0.753283]
[1734339072259,2.15336918,3953.6,3952.5,3.03034]
[1734339072463,0.7592,3953.5,3952.5,2.53004]
[1734339075578,0.7592,3953.5,3952.2,1.71402062]
[1734339075745,0.7592,3953.5,3952.6,2.52996]
[1734339076420,0.7592,3953.5,3952.5,3.0]
[1734339076706,2.15336918,3953.2,3952.3,3.29800691]
[1734339076998,0.7531,3953.1,3952.2,0.15582006]
[1734339077206,0.7531,3952.7,3951.8,1.35590747]
[1734339077345,0.7531,3952.7,3951.8,2.82848691]
[1734339077711,0.7531,3952.7,3951.9,2.55571975]
[1734339077994,0.7531,3952.7,3952.1,2.53028]
[1734339078177,0.7531,3952.7,3952.0,2.53036]
[1734339078380,0.7531,3952.7,3952.1,0.28378477]
[1734339078585,0.7531,3952.7,3951.9,0.47137393]
[1734339078783,0.7531,3952.7,3951.8,3.0]
[1734339079300,0.7531,3952.7,3951.7,2.83235206]
[1734339079301,0.7531,3952.7,3951.7,0.30181206]
[1734339079646,0.8048,3953.1,3952.2,2.53022]
[1734339079977,0.8048,3953.1,3952.2,3.03052]
[1734339082506,0.8048,3953.1,3952.2,0.5003]
[1734339082792,2.15336918,3953.6,3952.6,2.52993]
[1734339082992,2.15336918,3953.6,3952.6,0.31285638]
[1734339082993,0.7872,3953.5,3952.6,0.31285638]
[1734339083152,0.7872,3953.5,3952.8,2.52985]
[1734339083556,0.7872,3953.5,3952.9,2.52978]
[1734339083782,0.7872,3953.5,3952.6,0.61466844]
[1734339083783,0.7872,3953.5,3952.7,2.52991]
[1734339085495,1.05162157,3954.2,3952.8,0.52559394]
[1734339085496,0.8015,3954.1,3952.8,0.52559394]
[1734339085648,0.8015,3954.1,3953.5,2.5294]
[1734339085990,0.8015,3954.1,3953.0,6.58761056]
[1734339086193,2.52908,3954.0,3952.8,4.08793379]
[1734339086350,0.8203,3953.9,3952.8,3.33194206]
[1734339086549,0.8203,3953.9,3952.8,0.80211206]
[1734339086751,0.8203,3953.9,3952.9,0.02529282]
[1734339086982,0.8203,3953.9,3953.0,0.18853054]
[1734339087169,0.8203,3953.9,3953.5,2.5294]
[1734339087379,0.8203,3953.9,3953.3,2.52951]
[1734339087582,0.8203,3953.9,3953.1,2.52964]
[1734339087754,0.8203,3953.9,3953.3,3.0]
[1734339088313,0.8203,3953.9,3953.3,2.52952]
[1734339091005,0.77983432,3954.2,3953.7,2.52925]
[1734339091163,0.77983432,3954.2,3953.9,2.52909]
[1734339091363,0.77983432,3954.2,3953.5,3.02969]
[1734339091364,0.00123432,3954.2,3954.0,0.02528797]
[1734339091592,0.00123432,3954.2,3954.0,2.52906]
[1734339091815,0.00123432,3954.2,3954.1,0.0252872]
[1734339092024,0.00123432,3954.2,3954.1,2.5543072]
[1734339092180,0.00123432,3954.2,3954.1,2.52902]
[1734339092382,0.00123432,3954.2,3954.1,6.33113206]
[1734339093726,0.00123432,3954.2,3954.0,3.0]
[1734339093946,0.77133432,3954.2,3953.2,3.58748056]
[1734339094218,0.77133432,3954.2,3953.3,2.52951]
[1734339095439,0.77133432,3954.2,3953.4,2.52945]
[1734339095849,2.15336918,3954.0,3953.0,0.18853054]
[1734339096053,0.8133,3953.9,3952.8,0.80211206]
[1734339096205,0.8133,3953.9,3953.0,3.0]
[1734339096409,0.8133,3953.9,3953.1,3.0]
[1734339101873,0.8133,3953.9,3952.9,3.0]
[1734339102173,0.8133,3953.9,3952.9,0.9744987]
[1734339102881,0.8133,3953.9,3952.9,3.5042787]
[1734339104469,0.8133,3953.9,3952.9,0.9744987]
[1734339105592,4.68271918,3953.6,3952.5,0.5003]
[1734339105885,2.95676918,3953.6,3952.5,0.5003]
[1734339106171,2.95676918,3953.6,3952.9,2.52976]
[1734339106172,0.8034,3953.6,3952.9,2.52976]
[1734339106390,0.8034,3953.6,3952.9,0.02529187]
[1734339106531,0.7746,3953.9,3953.5,2.52939]
[1734339106844,0.77583432,3954.2,3953.8,2.52918]
[1734339107461,0.77583432,3954.2,3953.9,2.52912]
[1734339108300,0.77583432,3954.2,3953.2,3.0]
[1734339108503,0.77583432,3954.2,3953.7,2.52925]
[1734339108811,0.77583432,3954.2,3953.4,2.52946]
[1734339109111,0.77583432,3954.2,3953.9,2.52914]
[1734339111579,0.77583432,3954.2,3953.5,0.55547488]
[1734339111892,0.77583432,3954.2,3954.0,2.52907]
[1734339115614,0.77583432,3954.2,3953.5,0.55547488]
[1734339115815,0.77583432,3954.2,3953.8,2.5292]
[1734339116317,0.8117,3953.9,3953.2,4.05790056]
[1734339116470,0.8117,3953.9,3952.8,2.7763417]
[1734339116471,0.8117,3953.5,3952.8,2.7763417]
[1734339116669,0.8117,3953.5,3952.8,0.1315903]
[1734339117508,0.8117,3953.5,3952.8,2.6614003]
[1734339123303,0.8117,3953.5,3952.8,0.1315903]
[1734339123511,2.15336918,3953.2,3952.8,0.1315903]
[1734339123704,0.8057,3953.1,3952.8,0.1315903]
[1734339128265,0.8057,3953.1,3952.8,2.6614303]
[1734339129307,0.8057,3953.1,3952.8,0.1315903]
[1734339132953,0.8057,3953.1,3952.8,2.6614303]
[1734339133380,0.8057,3953.1,3952.8,0.39773333]
[1734339133581,0.8057,3953.1,3953.0,2.52972]
[1734339133948,0.8157,3953.6,3953.0,2.52972]
[1734339135090,0.8157,3953.6,3952.8,0.1315903]
[1734339135254,0.8157,3953.6,3953.2,2.52958]
[1734339135453,0.8157,3953.6,3952.9,2.52973]
[1734339135454,0.29690692,3953.5,3952.9,2.52973]
[1734339135786,0.29690692,3953.5,3952.8,2.52982]
[1734339135998,0.29690692,3953.5,3952.8,2.66144637]
[1734339136559,0.29690692,3953.5,3952.8,0.13162637]
[1734339137875,0.29690692,3953.5,3952.8,2.66145637]
[1734339138071,0.8157,3953.6,3952.8,2.66145637]
[1734339138687,0.8157,3953.6,3952.8,0.13162637]
[1734339138891,0.8157,3953.6,3952.8,2.66145637]
[1734339140096,0.8157,3953.6,3952.8,0.13162637]
[1734339140247,2.15336918,3953.3,3952.8,0.13162637]
[1734339140451,1.09132213,3953.2,3952.8,0.13162637]
[1734339142135,0.7973,3953.1,3952.8,0.13162637]
[1734339144144,2.92316918,3952.9,3952.8,0.13162637]
[1734339145814,5.45294918,3952.9,3952.8,0.13162637]
[1734339151060,2.92316918,3952.9,3952.8,0.13162637]
[1734339156009,5.45294918,3952.9,3952.8,0.13162637]
[1734339162049,5.45294918,3952.9,3952.1,0.26318794]
[1734339162050,0.8266,3952.2,3952.1,0.26318794]
[1734339162399,2.97996918,3952.2,3952.1,0.26318794]
[1734339163182,5.51019918,3952.2,3952.1,0.26318794]
[1734339163386,6.0612191,3952.2,3952.1,0.26318794]
[1734339163588,6.0612191,3952.2,3951.9,0.13166861]
[1734339163589,6.0384191,3952.2,3951.9,0.13166861]
[1734339163791,3.33416,3952.0,3951.9,0.13166861]
[1734339164804,5.48752918,3952.0,3951.9,0.13166861]
[1734339164958,3.33442,3951.6,3951.5,0.26321434]
[1734339165154,5.82123118,3951.6,3951.5,0.26321434]
[1734339165374,5.82123118,3951.6,3951.3,0.13170282]
[1734339165375,2.53074,3951.4,3951.3,0.13170282]
[1734339165656,3.33454,3951.4,3951.3,0.13170282]
[1734339167110,0.8038,3951.4,3951.3,0.13170282]
[1734339168485,3.33454,3951.4,3951.3,0.13170282]
[1734339168725,3.91667512,3951.4,3951.3,0.13170282]
[1734339170489,3.91667512,3951.4,3951.0,0.1530624]
[1734339170490,2.53094,3951.1,3951.0,0.1530624]
[1734339170690,2.15336918,3951.1,3951.0,0.1530624]
[1734339171532,4.68430918,3951.1,3951.0,0.1530624]
[1734339171738,2.15336918,3951.1,3951.0,0.1530624]
[1734339180290,2.15336918,3951.5,3951.0,0.1530624]
[1734339182600,2.15336918,3951.5,3951.0,0.48467542]
[1734339182793,2.15336918,3951.5,3951.0,0.1530624]
[1734339182993,4.68404918,3951.5,3951.0,0.1530624]
[1734339184533,2.15336918,3951.5,3951.0,0.1530624]
[1734339186151,0.99589051,3951.1,3951.0,0.1530624]
[1734339189629,0.99589051,3951.1,3951.0,0.6533624]
[1734339194842,0.8241,3952.1,3951.0,0.98498142]
[1734339195047,0.8241,3952.1,3951.0,0.6533624]
[1734339195048,0.99589051,3951.4,3951.0,0.6533624]
[1734339195390,0.99589051,3951.4,3951.0,0.1530624]
[1734339195391,0.99589051,3951.1,3951.0,0.1530624]
[1734339200234,3.52683051,3951.1,3951.0,0.1530624]
[1734339200444,4.71292356,3951.1,3951.0,0.1530624]
[1734339202768,2.18198356,3951.1,3951.0,0.1530624]
[1734339202980,4.27783051,3951.1,3951.0,0.1530624]
[1734339205208,8.82372102,3951.1,3951.0,0.1530624]
[1734339205387,8.27372102,3951.1,3951.0,0.1530624]
[1734339205573,10.01540611,3951.1,3951.0,0.1530624]
[1734339205774,12.11534852,3951.1,3951.0,0.1530624]
[1734339205988,2.53145,3950.3,3950.0,6.76878461]
[1734339206301,2.53115,3950.8,3950.0,6.76878461]
[1734339206302,0.99589051,3950.1,3950.0,6.76878461]
[1734339207209,3.52747051,3950.1,3950.0,6.76878461]
[1734339207555,0.99589051,3950.1,3950.0,6.76878461]
[1734339209106,0.8109,3950.2,3950.0,6.76878461]
[1734339209313,0.814,3950.6,3950.1,0.30178225]
[1734339209458,0.814,3951.0,3950.2,0.5003]
[1734339209660,0.814,3951.0,3950.3,0.85335671]
[1734339209925,0.814,3951.0,3950.2,0.80208225]
[1734339210503,0.814,3951.0,3950.2,3.33359225]
[1734339210504,0.99589051,3950.3,3950.2,3.33359225]
[1734339212877,0.99589051,3950.3,3950.2,0.80208225]
[1734339213105,0.99589051,3950.3,3950.2,0.5003]
[1734339213507,0.99589051,3950.3,3950.0,9.30039461]
[1734339213508,0.99589051,3950.3,3950.0,6.76878461]
[1734339216066,2.15907883,3950.1,3950.0,6.76878461]
[1734339216495,2.53146,3950.3,3950.0,6.76878461]
[1734339216697,2.53155,3950.2,3950.0,6.76878461]
[1734339216899,5.50346883,3950.4,3950.0,6.76878461]
[1734339217100,0.55034688,3950.3,3950.0,6.76878461]
[1734339217413,2.53153,3950.2,3950.0,6.76878461]
[1734339218515,2.53158,3950.1,3950.0,6.76878461]
[1734339218921,2.53158,3950.1,3950.0,6.63705626]
[1734339219711,3.30598,3950.1,3950.0,6.63705626]
[1734339219922,4.12342845,3950.1,3950.0,6.63705626]
[1734339221119,1.59184845,3950.1,3950.0,6.63705626]
[1734339221697,0.7744,3950.1,3950.0,6.63705626]
[1734339223179,2.93347883,3950.1,3950.0,6.63705626]
[1734339223379,2.15907883,3950.1,3950.0,6.63705626]
[1734339227920,2.94137883,3950.1,3950.0,6.63705626]
[1734339230930,5.47295883,3950.1,3950.0,6.63705626]
[1734339231541,6.2361626,3950.1,3950.0,6.63705626]
[1734339232037,4.07708377,3950.1,3950.0,6.63705626]
[1734339235112,1.54550377,3950.1,3950.0,6.63705626]
[1734339235312,4.31815766,3950.4,3950.0,6.63705626]
[1734339235313,2.15907883,3950.4,3950.0,6.63705626]
[1734339241467,2.15907883,3950.4,3950.1,0.5003]
[1734339245498,2.15907883,3950.4,3950.0,6.63705626]
[1734339245946,0.99642348,3950.1,3950.0,6.63705626]
[1734339258714,1.05317009,3950.6,3950.0,6.63705626]
[1734339258916,1.05317009,3950.9,3950.3,2.27825]
[1734339259217,1.05317009,3951.2,3950.4,0.80208225]
[1734339259417,0.7772,3951.5,3950.4,0.80208225]
[1734339259418,0.99642348,3950.9,3950.4,0.80208225]
[1734339259724,1.05317009,3951.3,3951.0,0.5003]
[1734339259933,0.99642348,3951.1,3951.0,0.5003]
[1734339262794,0.99642348,3951.1,3950.6,0.5003]
[1734339263138,0.99642348,3951.6,3950.3,1.05790056]
[1734339263139,0.99642348,3950.7,3950.3,1.05790056]
[1734339263297,0.99642348,3950.4,3950.2,1.05790056]
[1734339263697,0.99642348,3950.4,3950.0,7.05460145]
[1734339263933,0.99642348,3950.4,3950.0,8.6589665]
[1734339264133,2.1583295,3950.7,3950.0,8.6589665]
[1734339264522,2.1583295,3950.7,3950.0,8.96074875]
[1734339264710,2.1583295,3950.7,3950.0,11.23920875]
[1734339264910,2.1583295,3950.7,3950.1,2.58019225]